bitfinex-derivatives/quotes_BTCF0:USTF0_20250828
["timestamp","ask_amount","ask_price","bid_price","bid_amount"]
[1756363203241,1.39839609,113070.0,113060.0,0.14225619]
[1756363203545,1.35188422,113070.0,113060.0,0.14225619]
[1756363204146,1.35188422,113070.0,113060.0,0.16708619]
[1756363205447,1.35220422,113070.0,113060.0,0.16708619]
[1756363206247,0.51248422,113070.0,113060.0,0.16708619]
[1756363206450,0.86362,113070.0,113060.0,0.25552909]
[1756363207448,0.14046,113070.0,113060.0,0.25552909]
[1756363207646,0.97946,113070.0,113060.0,0.25552909]
[1756363210249,0.14046,113070.0,113060.0,0.25552909]
[1756363210549,0.97922,113070.0,113060.0,0.25552909]
[1756363213954,1.35124422,113070.0,113060.0,0.25552909]
[1756363218254,0.97922,113070.0,113060.0,0.25552909]
[1756363218456,0.97922,113070.0,113060.0,0.62755331]
[1756363218655,0.14046,113070.0,113060.0,0.25552909]
[1756363218855,1.34896422,113070.0,113060.0,0.23578591]
[1756363220757,0.51248422,113070.0,113060.0,0.23578591]
[1756363220957,0.97662,113070.0,113060.0,0.23578591]
[1756363223262,0.9755,113070.0,113060.0,0.60781013]
[1756363224262,0.14046,113070.0,113060.0,0.60781013]
[1756363224462,0.97606,113070.0,113060.0,0.60781013]
[1756363225062,0.14046,113070.0,113060.0,0.60781013]
[1756363225256,0.97578,113070.0,113060.0,0.60781013]
[1756363225457,0.97578,113070.0,113060.0,0.65420019]
[1756363225652,0.0798,113070.0,113060.0,0.90420019]
[1756363225853,0.03755,113070.0,113060.0,1.32261447]
[1756363226057,0.07003,113070.0,113060.0,1.32261447]
[1756363226263,0.07003,113070.0,113060.0,0.90420019]
[1756363227357,0.07003,113070.0,113060.0,0.85763471]
[1756363228261,0.03755,113070.0,113060.0,0.85763471]
[1756363228467,0.14591,113080.0,113070.0,0.1463252]
[1756363228760,0.11582,113080.0,113070.0,0.603354]
[1756363228963,0.08334,113080.0,113070.0,0.603354]
[1756363229168,0.03845,113080.0,113070.0,0.603354]
[1756363229362,0.01597,113080.0,113070.0,0.62267989]
[1756363230468,0.03845,113080.0,113070.0,0.62267989]
[1756363230666,0.07093,113080.0,113070.0,0.62267989]
[1756363232971,0.09583,113080.0,113070.0,0.62267989]
[1756363233370,0.11582,113080.0,113070.0,0.62267989]
[1756363235575,0.09092,113080.0,113070.0,0.62267989]
[1756363235879,0.07093,113080.0,113070.0,0.62267989]
[1756363236079,0.03845,113080.0,113070.0,0.62267989]
[1756363237082,0.01597,113080.0,113070.0,0.62267989]
[1756363237682,0.1062726,113090.0,113070.0,0.62267989]
[1756363237881,0.1625026,113090.0,113080.0,0.6023161]
[1756363238082,0.1624026,113090.0,113080.0,0.6023161]
[1756363239478,0.1634026,113090.0,113080.0,0.6023161]
[1756363239680,0.0999326,113090.0,113080.0,0.6023161]
[1756363239880,0.0754226,113090.0,113080.0,0.6023161]
[1756363240187,0.1090026,113090.0,113080.0,0.6023161]
[1756363240478,0.1335126,113090.0,113080.0,0.6023161]
[1756363241080,0.1325126,113090.0,113080.0,0.6023161]
[1756363242083,0.1335126,113090.0,113080.0,0.6023161]
[1756363243086,0.0190926,113090.0,113080.0,0.6023161]
[1756363243289,0.0190926,113090.0,113080.0,0.9741649]
[1756363243585,0.0180926,113090.0,113080.0,0.6023161]
[1756363243783,0.91751,113100.0,113080.0,1.2274122]
[1756363243784,0.02471,113100.0,113080.0,1.2274122]
[1756363244084,0.03792,113100.0,113090.0,0.6023083]
[1756363244285,0.03782,113100.0,113090.0,0.6023083]
[1756363244488,0.09591,113100.0,113090.0,0.6023083]
[1756363248288,0.11442,113100.0,113090.0,0.6023083]
[1756363250792,0.14284,113100.0,113090.0,0.2304595]
[1756363250994,0.14284,113100.0,113090.0,0.6023083]
[1756363257396,0.14284,113100.0,113090.0,0.64866467]
[1756363259201,0.56104517,113100.0,113090.0,0.64866467]
[1756363259601,0.14284,113100.0,113090.0,0.64866467]
[1756363260500,0.56104517,113100.0,113090.0,0.64866467]
[1756363261902,1.38692517,113100.0,113090.0,0.64866467]
[1756363263308,0.56104517,113100.0,113090.0,0.64866467]
[1756363263508,1.38648517,113100.0,113090.0,0.64866467]
[1756363264305,0.56104517,113100.0,113090.0,0.64866467]
[1756363264505,1.38628517,113100.0,113090.0,0.64866467]
[1756363265304,0.96808,113100.0,113090.0,0.64866467]
[1756363265505,1.38628517,113100.0,113090.0,0.64866467]
[1756363265700,1.38628517,113100.0,113090.0,0.2304595]
[1756363265910,1.38628517,113100.0,113090.0,0.64866467]
[1756363268002,0.96808,113100.0,113090.0,0.64866467]
[1756363268303,1.38628517,113100.0,113090.0,0.64866467]
[1756363269203,0.96808,113100.0,113090.0,0.64866467]
[1756363269400,1.38628517,113100.0,113090.0,0.64866467]
[1756363271909,0.96808,113100.0,113090.0,0.64866467]
[1756363272110,1.38628517,113100.0,113090.0,0.64866467]
[1756363275005,0.96808,113100.0,113090.0,0.64866467]
[1756363275206,0.96592,113100.0,113090.0,0.64866467]
[1756363275406,1.38412517,113100.0,113090.0,0.64866467]
[1756363276814,0.96592,113100.0,113090.0,0.64866467]
[1756363277016,1.38412517,113100.0,113090.0,0.64866467]
[1756363277515,0.96592,113100.0,113090.0,0.64866467]
[1756363277712,1.38412517,113100.0,113090.0,0.64866467]
[1756363284619,2.05233034,113100.0,113080.0,0.1409735]
[1756363284919,0.55937517,113090.0,113080.0,0.2205135]
[1756363285216,0.55937517,113090.0,113080.0,0.2440335]
[1756363285412,0.55937517,113090.0,113080.0,0.1862635]
[1756363285919,0.55937517,113090.0,113080.0,0.1882635]
[1756363286722,0.55937517,113090.0,113080.0,0.2225135]
[1756363287020,0.55937517,113090.0,113080.0,0.2215135]
[1756363287223,0.80937517,113090.0,113080.0,0.012]
[1756363287717,1.62993517,113090.0,113080.0,0.012]
[1756363288316,1.62997517,113090.0,113080.0,0.012]
[1756363288519,1.62985517,113090.0,113080.0,0.012]
[1756363288720,1.62985517,113090.0,113080.0,0.05693]
[1756363288918,0.55937517,113090.0,113080.0,0.56356237]
[1756363289118,1.62973517,113090.0,113080.0,0.60647237]
[1756363289423,1.62973517,113090.0,113080.0,0.66424237]
[1756363289811,0.14117,113090.0,113080.0,0.62999237]
[1756363290010,0.55937517,113090.0,113080.0,0.66424237]
[1756363290211,0.96129,113090.0,113080.0,0.66424237]
[1756363290513,0.08097,113090.0,113080.0,0.91424237]
[1756363291019,0.14117,113090.0,113080.0,0.91424237]
[1756363291521,0.14117,113090.0,113080.0,0.86780411]
[1756363294728,0.07016,113090.0,113080.0,0.86780411]
[1756363294930,0.93338399,113100.0,113090.0,0.2308294]
[1756363295128,0.98117399,113100.0,113090.0,0.60259631]
[1756363295821,0.09911399,113100.0,113090.0,0.60259631]
[1756363296028,0.05647399,113100.0,113090.0,0.60259631]
[1756363296226,0.11308399,113100.0,113090.0,0.60259631]
[1756363296418,0.16107399,113100.0,113090.0,0.60259631]
[1756363299325,0.12845399,113100.0,113090.0,0.60259631]
[1756363299531,0.13111399,113100.0,113090.0,0.60259631]
[1756363300227,0.10712399,113100.0,113090.0,0.60259631]
[1756363300629,0.13111399,113100.0,113090.0,0.60259631]
[1756363301133,0.08909399,113100.0,113090.0,0.60259631]
[1756363301431,0.05647399,113100.0,113090.0,0.60259631]
[1756363301628,0.01780399,113100.0,113090.0,0.60259631]
[1756363304025,0.01780399,113100.0,113090.0,0.88259631]
[1756363304337,0.01686,113110.0,113100.0,0.14241]
[1756363304524,0.01666,113110.0,113100.0,0.51417691]
[1756363304724,0.01666,113110.0,113100.0,0.60258851]
[1756363305127,0.03867,113110.0,113100.0,0.60258851]
[1756363305328,0.07129,113110.0,113100.0,0.60258851]
[1756363305523,0.07229,113110.0,113100.0,0.60258851]
[1756363305728,0.03967,113110.0,113100.0,0.60258851]
[1756363305930,0.07229,113110.0,113100.0,0.60258851]
[1756363306130,0.001,113110.0,113100.0,0.60258851]
[1756363306629,0.002,113110.0,113100.0,0.60258851]
[1756363307334,0.03887,113120.0,113110.0,0.2308137]
[1756363307533,0.00876049,113120.0,113110.0,0.2308137]
[1756363307752,0.11351,113130.0,113120.0,0.2308059]
[1756363307932,0.16829969,113130.0,113120.0,0.60257281]
[1756363308235,0.16845769,113130.0,113120.0,0.2308059]
[1756363308435,0.14327,113130.0,113120.0,0.60257281]
[1756363309130,0.15197996,113130.0,113120.0,0.60257281]
[1756363309733,0.15197996,113130.0,113120.0,0.2308059]
[1756363309933,0.15197996,113130.0,113120.0,0.60257281]
[1756363310132,0.15297996,113130.0,113120.0,0.60257281]
[1756363310334,0.14427,113130.0,113120.0,0.2308059]
[1756363310537,0.14427,113130.0,113120.0,0.60257281]
[1756363311240,0.11431,113130.0,113120.0,0.60257281]
[1756363311438,0.18580281,113130.0,113120.0,0.60257281]
[1756363311839,0.08169,113130.0,113120.0,0.60257281]
[1756363312028,0.03967,113130.0,113120.0,0.60257281]
[1756363312841,0.07229,113130.0,113120.0,0.60257281]
[1756363313343,0.03967,113130.0,113120.0,0.60257281]
[1756363314038,0.001,113130.0,113120.0,0.60257281]
[1756363314838,0.001,113130.0,113120.0,0.62206321]
[1756363315030,0.001,113130.0,113120.0,0.88206321]
[1756363316943,0.001,113130.0,113120.0,1.25383012]
[1756363317642,0.0002,113140.0,113130.0,0.1075189]
[1756363317846,0.74533291,113150.0,113140.0,0.2307911]
[1756363318042,0.7702878,113150.0,113140.0,0.60255801]
[1756363318443,0.17716417,113150.0,113140.0,0.60255801]
[1756363318646,0.16842489,113150.0,113140.0,0.60255801]
[1756363319251,0.17741417,113150.0,113140.0,0.2307911]
[1756363319546,0.17741417,113150.0,113140.0,0.60255801]
[1756363319748,0.17941417,113150.0,113140.0,0.60255801]
[1756363319952,0.18141417,113150.0,113140.0,0.60255801]
[1756363321353,0.18141417,113150.0,113140.0,0.2307911]
[1756363321545,0.15625928,113150.0,113140.0,0.60255801]
[1756363321949,0.15625928,113150.0,113140.0,0.51417691]
[1756363322852,0.15625928,113150.0,113140.0,0.60255811]
[1756363325347,0.15625928,113150.0,113140.0,0.2307912]
[1756363325553,0.15625928,113150.0,113140.0,0.60255811]
[1756363328948,0.02964928,113150.0,113140.0,0.60255811]
[1756363329156,0.004,113150.0,113140.0,0.60255811]
[1756363330457,0.002,113150.0,113140.0,0.60255811]
[1756363330657,0.002,113150.0,113140.0,0.60355811]
[1756363331451,0.90155535,113160.0,113150.0,0.0883733]
[1756363331657,0.91777535,113160.0,113150.0,0.60367021]
[1756363331852,0.93944535,113160.0,113150.0,0.60367021]
[1756363332858,0.97222535,113160.0,113150.0,0.60367021]
[1756363333854,0.15170535,113160.0,113150.0,0.60367021]
[1756363334054,0.97158535,113160.0,113150.0,0.60367021]
[1756363334253,0.97258535,113160.0,113150.0,0.60367021]
[1756363334856,0.99631535,113160.0,113150.0,0.60367021]
[1756363335357,0.99587535,113160.0,113150.0,0.60367021]
[1756363335854,0.93928535,113160.0,113150.0,0.60367021]
[1756363336257,1.01416535,113160.0,113150.0,0.60367021]
[1756363336656,1.04135535,113160.0,113150.0,0.60367021]
[1756363338260,0.22199535,113160.0,113150.0,0.60367021]
[1756363338462,1.04103535,113160.0,113150.0,0.60367021]
[1756363338652,0.22199535,113160.0,113150.0,0.60367021]
[1756363338860,1.04095535,113160.0,113150.0,0.60367021]
[1756363339356,0.96890884,113160.0,113150.0,0.60367021]
[1756363341464,0.99393061,113160.0,113150.0,0.60367021]
[1756363342350,0.99393061,113160.0,113150.0,0.2319033]
[1756363342657,0.99393061,113160.0,113150.0,0.60367021]
[1756363343061,0.99393061,113160.0,113150.0,0.2319033]
[1756363343261,0.17497061,113160.0,113150.0,0.60367021]
[1756363343461,0.99301061,113160.0,113150.0,0.60367021]
[1756363347162,0.99301061,113160.0,113150.0,0.2319033]
[1756363347362,0.99301061,113160.0,113150.0,0.60367021]
[1756363351168,0.17497061,113160.0,113150.0,0.60367021]
[1756363351471,0.99229061,113160.0,113150.0,0.60367021]
[1756363353673,0.99213061,113160.0,113150.0,0.60367021]
[1756363354466,0.99213061,113160.0,113150.0,0.2319033]
[1756363354668,0.17497061,113160.0,113150.0,0.60367021]
[1756363354870,0.99349061,113160.0,113150.0,0.60367021]
[1756363355472,0.99349061,113160.0,113150.0,0.2319033]
[1756363355772,0.99349061,113160.0,113150.0,0.60367021]
[1756363355969,0.99349061,113160.0,113150.0,0.1497833]
[1756363356169,0.11991,113150.0,113140.0,0.60139081]
[1756363356367,0.70398,113150.0,113140.0,0.60129081]
[1756363357368,0.70398,113150.0,113140.0,0.64733627]
[1756363357674,0.70398,113150.0,113140.0,0.64833627]
[1756363358574,0.70398,113150.0,113140.0,0.64933627]
[1756363359075,0.70398,113150.0,113140.0,0.2315239]
[1756363359272,0.70398,113150.0,113140.0,0.60293493]
[1756363359472,0.14298,113150.0,113140.0,0.60293493]
[1756363359684,0.96126,113150.0,113140.0,0.60293493]
[1756363359976,0.14298,113150.0,113140.0,0.60293493]
[1756363367483,0.14298,113150.0,113140.0,0.2315239]
[1756363367780,0.14298,113150.0,113140.0,0.60293493]
[1756363369479,0.14298,113150.0,113140.0,0.1991639]
[1756363369678,0.14298,113150.0,113140.0,0.1518639]
[1756363369882,0.14298,113150.0,113140.0,0.1335239]
[1756363370083,0.14298,113150.0,113140.0,0.2066039]
[1756363370987,0.14298,113150.0,113140.0,0.2315239]
[1756363371381,0.14298,113150.0,113140.0,0.60293493]
[1756363373585,0.14298,113150.0,113140.0,0.2315239]
[1756363373785,0.14298,113150.0,113140.0,0.60293493]
[1756363374084,0.14298,113150.0,113140.0,0.2315239]
[1756363374785,0.14298,113150.0,113140.0,0.2315328]
[1756363381402,0.56085718,113150.0,113140.0,0.64940998]
[1756363382294,0.14298,113150.0,113140.0,0.64940998]
[1756363382796,0.56085718,113150.0,113140.0,0.2315328]
[1756363382988,0.56085718,113150.0,113140.0,0.64940998]
[1756363384091,0.14298,113150.0,113140.0,0.64940998]
[1756363384291,0.56085718,113150.0,113140.0,0.64940998]
[1756363384594,0.14298,113150.0,113140.0,0.64940998]
[1756363384796,0.56085718,113150.0,113140.0,0.64940998]
[1756363385196,0.14298,113150.0,113140.0,0.2315328]
[1756363385399,0.56085718,113150.0,113140.0,0.64940998]
[1756363388198,0.14298,113150.0,113140.0,0.64940998]
[1756363388498,0.56085718,113150.0,113140.0,0.64940998]
[1756363389802,0.56085718,113150.0,113140.0,0.2315328]
[1756363390099,0.56085718,113150.0,113140.0,0.64940998]
[1756363391297,0.14298,113150.0,113140.0,0.2315328]
[1756363391500,0.56085718,113150.0,113140.0,0.64940998]
[1756363392398,0.14298,113150.0,113140.0,0.64940998]
[1756363392600,0.56085718,113150.0,113140.0,0.64940998]
[1756363394498,0.56085718,113150.0,113140.0,0.11079]
[1756363394701,0.56085718,113150.0,113140.0,0.002]
[1756363394898,0.56085718,113150.0,113140.0,0.04673]
[1756363395200,0.81085718,113150.0,113140.0,0.002]
[1756363395898,0.39298,113150.0,113140.0,0.002]
[1756363396104,1.43541718,113150.0,113140.0,0.002]
[1756363396608,1.43541718,113150.0,113140.0,0.001]
[1756363396809,0.14443,113150.0,113140.0,0.1975429]
[1756363397000,1.38214718,113150.0,113140.0,0.64769008]
[1756363397202,1.38214718,113150.0,113140.0,0.2298129]
[1756363397400,1.38214718,113150.0,113140.0,0.64769008]
[1756363397908,1.38214718,113150.0,113140.0,0.10916]
[1756363398206,1.38214718,113150.0,113140.0,0.0883829]
[1756363398408,1.38214718,113150.0,113140.0,0.1331129]
[1756363398610,1.29703718,113150.0,113130.0,0.67823788]
[1756363398813,0.55849718,113140.0,113130.0,0.65769218]
[1756363399006,1.37709718,113140.0,113130.0,0.65769218]
[1756363400310,0.55849718,113140.0,113130.0,0.65769218]
[1756363400504,1.37677718,113140.0,113130.0,0.65769218]
[1756363400808,1.37777718,113140.0,113130.0,0.65769218]
[1756363401410,0.55949718,113140.0,113130.0,0.65769218]
[1756363401708,1.37781718,113140.0,113130.0,0.65769218]
[1756363403013,0.55949718,113140.0,113130.0,0.65769218]
[1756363403210,0.9595,113140.0,113130.0,0.65769218]
[1756363403418,1.37737718,113140.0,113130.0,0.65769218]
[1756363403813,0.55949718,113140.0,113130.0,0.65769218]
[1756363404014,1.37729718,113140.0,113130.0,0.65769218]
[1756363404214,0.55949718,113140.0,113130.0,0.65769218]
[1756363404408,1.37729718,113140.0,113130.0,0.65769218]
[1756363404914,0.55949718,113140.0,113130.0,0.65769218]
[1756363405114,1.37717718,113140.0,113130.0,0.65769218]
[1756363405314,1.37717718,113140.0,113130.0,0.239815]
[1756363405513,1.37717718,113140.0,113130.0,0.65769218]
[1756363405814,0.55949718,113140.0,113130.0,0.65769218]
[1756363406017,1.37693718,113140.0,113130.0,0.65769218]
[1756363406314,1.37693718,113140.0,113130.0,0.65769788]
[1756363407217,0.14162,113140.0,113130.0,0.65769788]
[1756363407516,1.37685718,113140.0,113130.0,0.65769788]
[1756363407912,0.55949718,113140.0,113130.0,0.65769788]
[1756363408212,1.37681718,113140.0,113130.0,0.65769788]
[1756363408814,0.95894,113140.0,113130.0,0.65769788]
[1756363413715,0.95894,113140.0,113130.0,0.2398207]
[1756363413917,0.95894,113140.0,113130.0,0.65769788]
[1756363415321,0.95898,113140.0,113130.0,0.65769788]
[1756363415722,1.37685718,113140.0,113130.0,0.58057788]
[1756363416324,1.37685718,113140.0,113130.0,0.62659788]
[1756363416624,1.37685718,113140.0,113130.0,0.66031788]
[1756363416924,0.95898,113140.0,113130.0,0.66031788]
[1756363417121,1.37685718,113140.0,113130.0,0.66031788]
[1756363421822,1.37685718,113140.0,113130.0,0.15405]
[1756363422028,1.37685718,113140.0,113130.0,0.51334718]
[1756363423328,1.37685718,113140.0,113130.0,0.01]
[1756363423727,1.62685718,113140.0,113130.0,0.01]
[1756363433137,1.37685718,113140.0,113130.0,0.01]
[1756363434347,1.37673718,113140.0,113130.0,0.02607]
[1756363434741,1.37673718,113140.0,113130.0,0.05575]
[1756363435043,1.37673718,113140.0,113130.0,0.15377]
[1756363435744,1.37673718,113140.0,113130.0,0.09519]
[1756363435943,1.37673718,113140.0,113130.0,0.07403]
[1756363436243,1.37673718,113140.0,113130.0,0.1624207]
[1756363436947,1.37673718,113140.0,113130.0,0.1524207]
[1756363437846,0.95886,113140.0,113130.0,0.04575]
[1756363438046,1.37673718,113140.0,113130.0,0.04575]
[1756363438838,1.29189718,113140.0,113120.0,0.68302288]
[1756363439145,0.55723718,113130.0,113120.0,0.3821627]
[1756363439333,0.55723718,113130.0,113120.0,0.80003988]
[1756363440547,0.55723718,113130.0,113120.0,0.80103988]
[1756363440947,0.55723718,113130.0,113120.0,0.3831627]
[1756363441147,0.55723718,113130.0,113120.0,0.80003988]
[1756363441347,0.55723718,113130.0,113120.0,0.80203988]
[1756363441647,0.55723718,113130.0,113120.0,0.3841627]
[1756363441850,0.55723718,113130.0,113120.0,0.71364718]
[1756363442147,0.55723718,113130.0,113120.0,0.80204538]
[1756363442341,0.55723718,113130.0,113120.0,0.80104538]
[1756363442541,0.55723718,113130.0,113120.0,0.80204538]
[1756363443144,1.37439718,113130.0,113120.0,0.80204538]
[1756363443740,1.37439718,113130.0,113120.0,0.3841682]
[1756363443946,1.37439718,113130.0,113120.0,0.80204538]
[1756363444143,1.37439718,113130.0,113120.0,0.3841682]
[1756363444352,1.37435718,113130.0,113120.0,0.80204538]
[1756363449050,0.13936,113130.0,113120.0,0.80204538]
[1756363449253,0.38288,113130.0,113120.0,0.80204538]
[1756363449453,0.80075718,113130.0,113120.0,0.80204538]
[1756363451052,0.10712,113130.0,113120.0,0.80204538]
[1756363451254,0.85427,113130.0,113120.0,0.80204538]
[1756363451450,0.91131,113130.0,113120.0,0.80204538]
[1756363451756,0.14257,113130.0,113120.0,0.3841682]
[1756363452056,0.14257,113130.0,113120.0,0.80204538]
[1756363452250,0.56044718,113130.0,113120.0,0.80204538]
[1756363452660,0.14257,113130.0,113120.0,0.3841682]
[1756363452954,0.56044718,113130.0,113120.0,0.80204538]
[1756363453349,0.14257,113130.0,113120.0,0.80204538]
[1756363453549,0.56044718,113130.0,113120.0,0.80204538]
[1756363456259,0.14257,113130.0,113120.0,0.3841682]
[1756363456556,0.56044718,113130.0,113120.0,0.80204538]
[1756363457456,0.14257,113130.0,113120.0,0.80204538]
[1756363457651,0.56044718,113130.0,113120.0,0.80204538]
[1756363458154,0.14257,113130.0,113120.0,0.80204538]
[1756363458358,0.56044718,113130.0,113120.0,0.80204538]
[1756363460959,0.56044718,113130.0,113120.0,0.80291538]
[1756363462458,0.95949,113130.0,113120.0,0.80291538]
[1756363462862,1.37736718,113130.0,113120.0,0.80291538]
[1756363463659,0.95949,113130.0,113120.0,0.80291538]
[1756363463866,1.37736718,113130.0,113120.0,0.80291538]
[1756363464466,0.95949,113130.0,113120.0,0.80291538]
[1756363464666,1.37736718,113130.0,113120.0,0.80291538]
[1756363471973,0.95949,113130.0,113120.0,0.80291538]
[1756363472273,1.37716718,113130.0,113120.0,0.80291538]
[1756363472476,1.37716718,113130.0,113120.0,0.3850382]
[1756363472670,1.37716718,113130.0,113120.0,0.80291538]
[1756363474175,1.37716718,113130.0,113120.0,0.3850382]
[1756363474370,1.37716718,113130.0,113120.0,0.80291538]
[1756363480078,1.37716718,113130.0,113120.0,0.74346538]
[1756363480872,1.37716718,113130.0,113120.0,0.3044282]
[1756363481073,0.16064148,113130.0,113120.0,0.70402528]
[1756363481377,1.19895866,113130.0,113120.0,0.80040528]
[1756363482982,1.19895866,113130.0,113120.0,0.3825281]
[1756363483169,1.19895866,113130.0,113120.0,0.80040528]
[1756363484073,1.39503866,113130.0,113120.0,0.80040528]
[1756363485778,0.57851866,113130.0,113120.0,0.80040528]
[1756363485981,1.39499866,113130.0,113120.0,0.80040528]
[1756363488980,1.39495866,113130.0,113120.0,0.3825281]
[1756363489179,1.39495866,113130.0,113120.0,0.80040528]
[1756363492583,0.57851866,113130.0,113120.0,0.80040528]
[1756363492779,1.39487866,113130.0,113120.0,0.80040528]
[1756363493284,1.39483866,113130.0,113120.0,0.80040528]
[1756363494376,0.16064148,113130.0,113120.0,0.80040528]
[1756363494684,1.39483866,113130.0,113120.0,0.80040528]
[1756363495481,0.97696148,113130.0,113120.0,0.80040528]
[1756363495782,1.39483866,113130.0,113120.0,0.80040528]
[1756363498985,1.39483866,113130.0,113120.0,0.74474528]
[1756363502780,1.81271584,113130.0,113120.0,0.21582]
[1756363502984,2.06271584,113130.0,113120.0,0.002]
[1756363503386,1.27197226,113130.0,113120.0,0.0903981]
[1756363503574,1.2522979,113130.0,113120.0,0.0903981]
[1756363503774,1.25229781,113130.0,113120.0,0.0903981]
[1756363503975,2.08805217,113130.0,113120.0,0.0903981]
[1756363504179,2.06247584,113130.0,113120.0,0.0903981]
[1756363504378,1.64459866,113130.0,113120.0,0.0903981]
[1756363505886,0.82851866,113130.0,113120.0,0.0903981]
[1756363506184,1.64459866,113130.0,113120.0,0.0903981]
[1756363508888,2.06235584,113130.0,113120.0,0.0903981]
[1756363510088,1.64447866,113130.0,113120.0,0.1182481]
[1756363510289,1.64447866,113130.0,113120.0,0.1341381]
[1756363511285,2.06235584,113130.0,113120.0,0.1341381]
[1756363511490,2.06235584,113130.0,113120.0,0.1182481]
[1756363511690,2.06235584,113130.0,113120.0,0.0903981]
[1756363514191,2.06235584,113130.0,113120.0,0.1182481]
[1756363516593,2.06235584,113130.0,113120.0,0.0903981]
[1756363516892,2.06235584,113130.0,113120.0,0.002]
[1756363517187,0.41064148,113130.0,113120.0,0.169988]
[1756363517389,0.16064148,113130.0,113120.0,0.64974518]
[1756363517589,0.79099148,113130.0,113120.0,0.481868]
[1756363517790,0.79099148,113130.0,113120.0,0.89974518]
[1756363518096,0.79099148,113130.0,113120.0,0.481868]
[1756363518297,1.20886866,113130.0,113120.0,0.89974518]
[1756363518787,0.79099148,113130.0,113120.0,0.89974518]
[1756363520198,1.20886866,113130.0,113120.0,0.89974518]
[1756363523596,1.20886866,113130.0,113120.0,0.481868]
[1756363523796,1.20886866,113130.0,113120.0,0.89974518]
[1756363526698,0.79099148,113130.0,113120.0,0.89974518]
[1756363526897,1.20886866,113130.0,113120.0,0.89974518]
[1756363528000,0.79099148,113130.0,113120.0,0.89974518]
[1756363528196,1.20886866,113130.0,113120.0,0.89974518]
[1756363528498,0.79099148,113130.0,113120.0,0.89974518]
[1756363528700,1.20886866,113130.0,113120.0,0.89974518]
[1756363530899,1.39566866,113130.0,113120.0,0.89974518]
[1756363531798,1.39566866,113130.0,113120.0,0.481868]
[1756363532000,1.39566866,113130.0,113120.0,0.89974518]
[1756363532699,1.39566866,113130.0,113120.0,0.481868]
[1756363532900,1.39566866,113130.0,113120.0,0.89974518]
[1756363533402,0.97779148,113130.0,113120.0,0.89974518]
[1756363536706,0.97767148,113130.0,113120.0,0.89974518]
[1756363538206,0.16227148,113130.0,113120.0,0.89974518]
[1756363538408,0.73883148,113130.0,113120.0,0.89974518]
[1756363539505,0.97763148,113130.0,113120.0,0.89974518]
[1756363540399,0.16227148,113130.0,113120.0,0.89974518]
[1756363540601,0.97759148,113130.0,113120.0,0.89974518]
[1756363542713,0.97759148,113130.0,113120.0,0.481868]
[1756363542908,0.97759148,113130.0,113120.0,0.89974518]
[1756363544110,0.16227148,113130.0,113120.0,0.89974518]
[1756363544312,0.97751148,113130.0,113120.0,0.89974518]
[1756363545110,0.16227148,113130.0,113120.0,0.89974518]
[1756363545307,0.97751148,113130.0,113120.0,0.89974518]
[1756363547512,0.16227148,113130.0,113120.0,0.89974518]
[1756363547714,0.97743148,113130.0,113120.0,0.89974518]
[1756363548109,0.95936,113130.0,113120.0,0.89974518]
[1756363548615,0.95936,113130.0,113120.0,0.91921868]
[1756363551610,0.95936,113130.0,113120.0,0.89974518]
[1756363552207,1.37723718,113130.0,113120.0,0.86571498]
[1756363552412,1.37723718,113130.0,113120.0,0.002]
[1756363552613,1.37723718,113130.0,113120.0,0.41987718]
[1756363553212,1.37723718,113130.0,113120.0,0.002]
[1756363553414,1.37723718,113130.0,113120.0,0.41987718]
[1756363553913,1.37723718,113130.0,113120.0,0.002]
[1756363554107,1.37723718,113130.0,113120.0,0.41987718]
[1756363555115,1.40408928,113130.0,113120.0,0.41987718]
[1756363558011,0.58892928,113130.0,113120.0,0.41987718]
[1756363558210,1.40388928,113130.0,113120.0,0.44710718]
[1756363558410,1.40388928,113130.0,113120.0,0.46213718]
[1756363559116,0.9860121,113130.0,113120.0,0.48150718]
[1756363559322,1.40388928,113130.0,113120.0,0.55951718]
[1756363559514,0.58892928,113130.0,113120.0,0.55951718]
[1756363559720,1.40388928,113130.0,113120.0,0.55951718]
[1756363560113,0.9860121,113130.0,113120.0,0.64791488]
[1756363560418,1.4037812,113130.0,113120.0,0.64791488]
[1756363560618,1.4037812,113130.0,113120.0,0.46213718]
[1756363561524,1.4037812,113130.0,113120.0,0.04426]
[1756363561822,1.4037812,113130.0,113120.0,0.46213718]
[1756363562624,0.98590402,113130.0,113120.0,0.50320718]
[1756363562822,1.4037812,113130.0,113120.0,0.55951718]
[1756363563022,1.4037812,113130.0,113120.0,0.53647718]
[1756363564124,0.98590402,113130.0,113120.0,0.53647718]
[1756363564325,1.4037812,113130.0,113120.0,0.55951718]
[1756363567530,1.4036612,113130.0,113120.0,0.64791458]
[1756363567727,1.4036612,113130.0,113120.0,0.2300374]
[1756363567927,1.4036612,113130.0,113120.0,0.64791458]
[1756363568125,1.4036612,113130.0,113120.0,0.55951718]
[1756363569129,1.4036612,113130.0,113120.0,0.06363]
[1756363569427,1.4036612,113130.0,113120.0,0.48150718]
[1756363570331,1.4036612,113130.0,113120.0,0.002]
[1756363570524,2.07153838,113130.0,113120.0,0.002]
[1756363570828,0.14125,113120.0,113110.0,0.41797718]
[1756363571027,0.55912718,113120.0,113110.0,0.41787718]
[1756363571424,0.58586458,113120.0,113110.0,0.41787718]
[1756363571624,0.58586458,113120.0,113110.0,0.55757718]
[1756363571829,1.40062458,113120.0,113110.0,0.55757718]
[1756363572030,1.40062458,113120.0,113110.0,0.55957718]
[1756363572229,1.37388718,113120.0,113110.0,0.55957718]
[1756363572628,1.39191297,113120.0,113110.0,0.55957718]
[1756363572830,1.39191297,113120.0,113110.0,0.56057718]
[1756363573227,1.39191297,113120.0,113110.0,0.50529718]
[1756363573629,1.39191297,113120.0,113110.0,0.003]
[1756363573829,1.39191297,113120.0,113110.0,0.42087718]
[1756363574534,1.41864286,113120.0,113110.0,0.42087718]
[1756363574733,1.41864286,113120.0,113110.0,0.03038]
[1756363574934,1.41864286,113120.0,113110.0,0.44825718]
[1756363575135,1.41864286,113120.0,113110.0,0.003]
[1756363575336,1.41864286,113120.0,113110.0,0.42087718]
[1756363575536,1.41864286,113120.0,113110.0,0.46359718]
[1756363576626,1.00076568,113120.0,113110.0,0.50529718]
[1756363576832,1.41864286,113120.0,113110.0,0.56057718]
[1756363577737,1.41860286,113120.0,113110.0,0.56057718]
[1756363577938,1.00068568,113120.0,113110.0,0.1427]
[1756363578129,1.41856286,113120.0,113110.0,0.56057718]
[1756363578639,1.39183297,113120.0,113110.0,0.56057718]
[1756363580140,0.57715297,113120.0,113110.0,0.56057718]
[1756363580344,1.39179297,113120.0,113110.0,0.56057718]
[1756363582146,0.97387579,113120.0,113110.0,0.56057718]
[1756363583144,0.97387579,113120.0,113110.0,0.1427]